bitfinex/quotes_ETHUSD_20230113
["timestamp","ask_amount","ask_price","bid_price","bid_amount"]
[1673643786285,12.48725511,1425.8,1425.5,7.06407649]
[1673643786497,19.50086511,1425.8,1425.5,0.06553534]
[1673643786758,19.50086511,1425.8,1425.4,22.23511712]
[1673643787075,5.55641923,1425.7,1425.4,16.25937399]
[1673643787401,5.62241923,1425.7,1425.4,23.27494399]
[1673643787552,5.62241923,1425.7,1425.4,16.25937399]
[1673643787911,12.63654923,1425.7,1425.4,16.25937399]
[1673643788086,19.65067923,1425.7,1425.4,8.20444712]
[1673643788512,12.63654923,1425.7,1425.4,15.22001712]
[1673643788922,12.63654923,1425.7,1425.4,8.20170997]
[1673643789468,4.86998764,1425.6,1425.4,1.18646997]
[1673643789664,4.176,1425.5,1425.4,0.05886826]
[1673643789879,28.82757272,1425.5,1425.4,0.05886826]
[1673643790109,28.89357272,1425.5,1425.4,0.05886826]
[1673643792376,33.35057272,1425.5,1425.4,0.05886826]
[1673643792636,23.38931527,1425.5,1425.4,0.05886826]
[1673643792962,37.41947527,1425.5,1425.4,0.05886826]
[1673643793113,37.45093039,1425.5,1425.4,0.05886826]
[1673643794224,37.68093039,1425.5,1425.4,0.05886826]
[1673643794544,45.09593039,1425.5,1425.4,0.05886826]
[1673643795651,49.63991877,1425.5,1425.4,0.05886826]
[1673643795862,50.81591877,1425.5,1425.4,0.05886826]
[1673643796076,4.227,1425.4,1425.0,0.00247777]
[1673643796435,36.29712784,1425.3,1425.0,0.00247777]
[1673643796643,7.01705,1425.1,1425.0,0.00247777]
[1673643796791,10.68938272,1425.1,1425.0,0.00247777]
[1673643797006,3.67233272,1425.1,1424.8,7.00343452]
[1673643797276,10.62338272,1425.1,1424.8,0.06553534]
[1673643797420,5.84467099,1425.0,1424.8,0.002]
[1673643797639,5.84467099,1425.0,1424.7,0.03617868]
[1673643797640,7.01803,1424.9,1424.7,0.03617868]
[1673643797890,14.10206,1424.9,1424.7,0.03617868]
[1673643798049,24.72642272,1424.9,1424.7,0.03617868]
[1673643798814,25.90242272,1424.9,1424.6,0.02058326]
[1673643799022,9.60886227,1424.8,1424.6,0.02058326]
[1673643799370,9.67486227,1424.8,1424.6,0.02058326]
[1673643799527,16.69348227,1424.8,1424.6,0.02058326]
[1673643799947,13.28119499,1424.8,1424.6,0.02058326]
[1673643800199,6.26257499,1424.8,1424.6,0.02058326]
[1673643800480,4.23259022,1424.7,1424.6,0.02058326]
[1673643800889,11.25161022,1424.7,1424.6,0.02058326]
[1673643801206,11.31761022,1424.7,1424.6,0.02058326]
[1673643801423,0.6922575,1424.7,1424.6,7.04009326]
[1673643801626,0.03145512,1424.8,1424.6,7.1056286]
[1673643801873,0.03145512,1424.8,1424.6,0.0861186]
[1673643801874,6.63778784,1424.8,1424.6,0.0861186]
[1673643802071,6.63778784,1424.8,1424.6,0.02058326]
[1673643802072,6.70378784,1424.8,1424.6,0.02058326]
[1673643802260,3.60633272,1424.7,1424.6,0.02058326]
[1673643802623,17.64437272,1424.7,1424.6,0.02058326]
[1673643802786,20.71037272,1424.7,1424.6,0.02058326]
[1673643803538,27.72939272,1424.7,1424.6,0.02058326]
[1673643803847,27.72939272,1424.7,1424.3,2.5]
[1673643803848,27.72939272,1424.7,1424.3,2.46315598]
[1673643804197,10.65752784,1424.6,1424.3,2.46315598]
[1673643804509,10.65752784,1424.6,1424.2,33.62379174]
[1673643804510,10.72352784,1424.6,1424.2,33.62379174]
[1673643804725,10.72352784,1424.6,1424.3,7.0209]
[1673643804726,3.70378784,1424.6,1424.3,7.0209]
[1673643804916,3.63778784,1424.6,1424.3,14.10742534]
[1673643805559,3.63778784,1424.6,1424.3,16.60742534]
[1673643805774,3.60633272,1424.5,1424.3,9.58643534]
[1673643805961,3.60633272,1424.5,1424.3,14.10742534]
[1673643806717,3.60633272,1424.5,1424.3,13.91254483]
[1673643806877,0.09745512,1424.6,1424.3,13.91254483]
[1673643807096,3.63778784,1424.6,1424.3,13.91254483]
[1673643807298,3.63778784,1424.6,1424.3,13.66254483]
[1673643808379,3.066,1424.7,1424.3,22.84150695]
[1673643808574,3.066,1424.8,1424.5,7.0199]
[1673643808940,6.60633272,1424.8,1424.5,7.08543534]
[1673643809236,13.69089272,1424.8,1424.5,0.06553534]
[1673643809449,13.69089272,1424.8,1424.4,22.30224534]
[1673643809682,13.69089272,1424.8,1424.5,2.5]
[1673643809882,6.67233272,1424.8,1424.5,24.72796]
[1673643810028,0.066,1424.8,1424.6,1.176]
[1673643810239,18.2617,1425.1,1424.6,1.176]
[1673643810240,4.293,1425.1,1424.6,1.176]
[1673643810499,3.60633272,1425.0,1424.7,21.05642]
[1673643810670,3.67233272,1425.1,1424.7,21.12195534]
[1673643810887,3.60633272,1425.1,1424.7,22.28795534]
[1673643811450,30.436,1425.2,1424.8,1.17]
[1673643811639,30.436,1425.2,1424.9,3.668]
[1673643811640,3.67233272,1425.2,1424.9,3.668]
[1673643811860,3.60633272,1425.2,1425.0,7.01754]
[1673643812086,3.60633272,1425.2,1425.0,0.06553534]
[1673643812389,3.60633272,1425.2,1424.8,16.95047534]
[1673643813185,3.60633272,1425.1,1424.8,0.06553534]
[1673643813423,4.0,1424.8,1424.7,8.14893534]
[1673643813645,4.0,1424.8,1424.7,0.06553534]
[1673643813862,4.0,1424.8,1424.6,2.5]
[1673643814024,4.0,1424.8,1424.5,3.74014074]
[1673643814240,4.0,1424.8,1424.5,2.61283965]
[1673643814441,4.0,1424.8,1424.5,0.0066054]
[1673643814810,11.01861,1424.8,1424.5,0.0066054]
[1673643814968,11.08461,1424.8,1424.5,0.0066054]
[1673643815177,11.08461,1424.8,1424.3,10.38763534]
[1673643815178,7.81378784,1424.7,1424.3,10.38763534]
[1673643815389,3.60633272,1424.6,1424.3,0.06553534]
[1673643815598,0.36063327,1424.5,1424.2,7.98276174]
[1673643815855,0.36063327,1424.5,1424.2,3.46166174]
[1673643815856,11.01848111,1424.5,1424.2,3.46166174]
[1673643816068,11.08448111,1424.5,1424.2,0.8961264]
[1673643816967,18.10454111,1424.5,1424.2,0.8961264]
[1673643817387,3.60633272,1424.4,1424.2,0.8961264]
[1673643817606,7.38162327,1424.3,1424.2,0.8461264]
[1673643817807,0.42663327,1424.3,1424.2,0.8461264]
[1673643818021,0.36063327,1424.3,1424.2,0.8461264]
[1673643819224,3.99842111,1424.3,1424.2,0.8461264]
[1673643819438,25.06139111,1424.3,1424.2,0.8461264]
[1673643819593,25.12739111,1424.3,1424.2,0.8461264]
[1673643820359,30.53039111,1424.3,1424.2,0.8461264]
[1673643820560,53.70360643,1424.3,1424.2,0.8461264]
[1673643820901,67.93360643,1424.3,1424.0,10.06553534]
[1673643821093,21.06591,1424.1,1424.0,10.06553534]
[1673643821313,3.67233272,1424.1,1424.0,10.06553534]
[1673643821492,3.60633272,1424.1,1424.0,10.06553534]
[1673643822163,17.65027272,1424.1,1424.0,10.06553534]
[1673643822336,24.73824272,1424.1,1424.0,10.06553534]
[1673643822688,44.13557899,1424.1,1424.0,10.06553534]
[1673643823010,51.15754899,1424.1,1424.0,10.06553534]
[1673643823216,51.15754899,1424.1,1424.0,10.064]
[1673643823376,30.13557899,1424.1,1424.0,10.06553534]
[1673643824136,37.15754899,1424.1,1424.0,10.06553534]
[1673643824661,44.57254899,1424.1,1424.0,10.06553534]
[1673643824906,50.52546499,1424.1,1423.9,0.11945933]
[1673643825181,54.56141,1424.0,1423.5,2.60727204]
[1673643825413,54.56141,1424.0,1423.5,0.10727204]
[1673643825414,1.176,1423.6,1423.5,0.10727204]
[1673643825677,8.20044,1423.6,1423.5,0.10727204]
[1673643825836,5.49793423,1423.6,1423.5,0.10727204]
[1673643826042,3.67233272,1423.6,1423.5,0.10727204]
[1673643826358,10.63094272,1423.6,1423.4,0.03426563]
[1673643826568,10.63094272,1423.6,1423.2,3.72926563]
[1673643826569,3.67233272,1423.6,1423.2,3.72926563]
[1673643826815,3.60633272,1423.6,1423.2,3.66326563]
[1673643827036,3.60633272,1423.6,1423.2,9.52462563]
[1673643827198,10.12169512,1423.7,1423.2,18.50048615]
[1673643827199,3.09745512,1423.7,1423.2,18.50048615]
[1673643827409,6.63778784,1423.7,1423.2,11.47407615]
[1673643827654,20.75188784,1423.7,1423.2,11.59520887]
[1673643827884,20.75188784,1423.7,1423.3,1.15952089]
[1673643828261,20.75188784,1423.7,1423.2,12.76720887]
[1673643829136,20.75188784,1423.7,1423.2,19.79361887]
[1673643829926,3.066,1423.7,1423.4,1.176]
[1673643830172,0.066,1423.9,1423.5,14.04986]
[1673643830401,3.60633272,1423.8,1423.5,0.066]
[1673643830613,0.36063327,1423.7,1423.4,9.52509]
[1673643830826,17.65381272,1423.8,1423.4,2.566]
[1673643831017,10.63028272,1423.7,1423.3,41.24437]
[1673643831232,10.69628272,1423.7,1423.3,33.55277]
[1673643831401,3.60633272,1423.6,1423.3,11.3078]
[1673643831613,21.43542327,1423.5,1423.3,0.066]
[1673643831876,3.60633272,1423.4,1423.2,0.12113272]
[1673643832030,0.42663327,1423.5,1423.2,0.12113272]
[1673643832242,3.96696599,1423.5,1423.2,0.12113272]
[1673643832613,3.96696599,1423.5,1423.1,8.19472252]
[1673643832977,3.96696599,1423.5,1423.1,1.16809252]
[1673643833215,4.00302932,1423.4,1423.0,10.066]
[1673643833395,10.66374784,1423.3,1423.0,10.066]
[1673643833605,3.70378784,1423.3,1423.0,9.816]
[1673643833857,3.63778784,1423.3,1423.0,9.816]
[1673643834179,4.75038528,1423.3,1423.0,16.84337]
[1673643834392,4.75038528,1423.3,1423.0,9.816]
[1673643834552,3.60633272,1423.2,1423.0,9.816]
[1673643834757,1.21005256,1423.3,1423.0,9.816]
[1673643834973,3.60633272,1423.2,1423.0,9.816]
[1673643835183,12.51328925,1423.2,1423.0,9.816]
[1673643835439,3.63778784,1423.1,1423.0,9.816]
[1673643836125,20.69160784,1423.1,1423.0,9.816]
[1673643836397,3.09745512,1423.1,1423.0,9.816]
[1673643836589,0.03145512,1423.1,1423.0,9.816]
[1673643836803,3.0,1423.1,1423.0,9.816]
[1673643837013,3.09745512,1423.3,1423.0,9.816]
[1673643837187,3.60633272,1423.2,1423.0,9.816]
[1673643837405,3.0,1423.1,1423.0,9.816]
[1673643837614,6.60633272,1423.1,1423.0,9.816]
[1673643837824,6.67233272,1423.1,1423.0,9.816]
[1673643838038,5.403,1423.4,1423.1,2.72260973]
[1673643838268,0.066,1423.4,1423.1,2.72260973]
[1673643838437,14.9991,1423.6,1423.1,5.22260973]
[1673643838438,29.0651,1423.6,1423.1,5.22260973]
[1673643838646,3.60633272,1423.5,1423.1,5.28860973]
[1673643838913,0.066,1423.6,1423.1,22.8229507]
[1673643839069,3.60633272,1423.6,1423.1,22.8229507]
[1673643839279,3.60633272,1423.6,1423.2,2.5]
[1673643839489,3.60633272,1423.6,1423.2,16.55253]
[1673643839718,3.60633272,1423.6,1423.2,16.61853]
[1673643839980,0.066,1423.7,1423.3,1.661853]
[1673643840196,14.5875,1423.9,1423.4,8.19333]
[1673643840197,14.6535,1423.9,1423.4,8.19333]
[1673643840494,14.6535,1423.9,1423.4,8.25933]
[1673643840495,3.60633272,1423.8,1423.4,8.25933]
[1673643840643,3.60633272,1423.8,1423.4,10.9065483]
[1673643841484,3.60633272,1423.8,1423.4,10.9135483]
[1673643841694,3.60633272,1423.8,1423.4,17.9389783]
[1673643841951,4.60633272,1423.8,1423.4,10.9135483]
[1673643842169,1.0,1423.8,1423.5,2.5]
[1673643842381,1.0,1423.8,1423.5,12.03823483]
[1673643842382,4.0,1423.8,1423.5,12.03823483]
[1673643842550,4.0,1423.8,1423.5,10.93223483]
[1673643842551,1.0,1423.8,1423.5,10.93223483]
[1673643842772,1.0,1423.8,1423.5,3.90735483]
[1673643843113,1.0,1423.8,1423.5,3.84135483]
[1673643843905,1.0,1423.8,1423.6,0.38413548]
[1673643844114,1.0,1423.8,1423.7,7.02395]
[1673643844382,1.0,1423.8,1423.7,7.08995]
[1673643845282,1.0,1423.8,1423.7,14.1139]
[1673643845521,1.0,1423.8,1423.7,17.7899]
[1673643845842,1.0,1423.8,1423.7,1.045]
[1673643846055,1.0,1423.8,1423.7,1.12191355]
[1673643846266,1.0,1423.8,1423.7,15.16981355]
[1673643846430,1.0,1423.8,1423.7,15.23581355]
[1673643846656,1.0,1423.8,1423.7,18.91181355]
[1673643847427,1.0,1423.8,1423.7,17.91181355]
[1673643848329,1.0,1423.8,1423.7,19.31781355]
[1673643848543,1.0,1423.8,1423.7,18.53981355]
[1673643848770,1.0,1423.8,1423.7,21.53981355]
[1673643849313,1.0,1423.8,1423.7,21.31791657]
[1673643849524,1.0,1423.8,1423.7,11.29396657]
[1673643849687,1.0,1423.8,1423.7,2.566]
[1673643849899,1.0,1423.8,1423.7,2.5]
[1673643850282,1.0,1423.8,1423.7,7.02395]
[1673643850519,1.0,1423.8,1423.7,0.066]
[1673643850744,1.0,1423.8,1423.6,7.09042]
[1673643850885,0.03145512,1424.0,1423.6,7.09042]
[1673643851100,1.44563063,1424.0,1423.6,7.09042]
[1673643851574,3.60633272,1423.9,1423.6,0.066]
[1673643851892,10.66099784,1423.9,1423.5,0.066]
[1673643852201,10.66099784,1423.9,1423.4,24.88558]
[1673643852202,4.6724325,1423.8,1423.4,24.95158]
[1673643852515,3.60633272,1423.8,1423.5,6.63725389]
[1673643852826,3.60633272,1423.8,1423.5,13.72818389]
[1673643853255,0.09745512,1423.9,1423.5,13.72818389]
[1673643853465,3.63778784,1423.9,1423.5,13.72818389]
[1673643853627,0.84325146,1423.9,1423.5,13.67951565]
[1673643853837,0.03145512,1423.9,1423.5,13.67951565]
[1673643854061,0.03145512,1423.9,1423.6,2.5]
[1673643854274,3.0,1424.1,1423.7,0.00810302]
[1673643854464,6.60633272,1424.1,1423.7,21.07934302]
[1673643854673,0.066,1424.1,1423.7,25.13387732]
[1673643854918,22.7508,1424.2,1423.7,25.13387732]
[1673643854919,22.8168,1424.2,1423.7,25.13387732]
[1673643855090,26.42313272,1424.2,1423.8,2.5]
[1673643855300,26.42313272,1424.2,1423.9,7.02286]
[1673643855511,26.42313272,1424.2,1423.9,14.11182]
[1673643856198,3.67233272,1424.2,1423.9,14.11182]
[1673643856353,3.60633272,1424.2,1423.9,14.11182]
[1673643856933,3.60633272,1424.2,1423.9,14.06182]
[1673643857089,0.10555815,1424.3,1423.9,14.06182]
[1673643857295,6.01666669,1424.3,1423.9,14.06182]
[1673643857625,6.08266669,1424.3,1423.9,14.06182]
[1673643857840,6.08266669,1424.3,1423.9,21.08478]
[1673643858061,6.08266669,1424.3,1424.0,2.5]
[1673643858409,6.08266669,1424.3,1424.0,16.54458]
[1673643858597,0.60826667,1424.2,1424.0,7.08812]
[1673643859298,0.60826667,1424.2,1424.0,6.91831847]
[1673643859922,0.60826667,1424.2,1424.0,13.94078847]
[1673643860143,0.60826667,1424.2,1424.0,13.86429653]
[1673643860509,0.60826667,1424.2,1424.0,0.066]
[1673643860510,7.62974667,1424.2,1424.0,0.066]
[1673643860659,4.36930739,1424.1,1423.8,7.02321]
[1673643861027,11.39133739,1424.1,1423.8,0.066]
[1673643861239,8.18033272,1424.0,1423.7,0.066]
[1673643861458,23.43081646,1424.0,1423.5,15.41651]
[1673643861605,16.40793646,1424.0,1423.6,7.02421]
[1673643861946,2.34308165,1423.9,1423.6,14.11463]
[1673643862170,2.34308165,1423.9,1423.6,14.08281805]
[1673643862356,2.34308165,1423.9,1423.6,14.07808719]
[1673643863214,2.29308165,1423.9,1423.6,7.05366719]
[1673643863963,4.20513374,1424.0,1423.6,16.57810719]
[1673643864155,3.0,1424.0,1423.6,22.67654719]
[1673643864364,3.0,1424.0,1423.6,23.73168331]
[1673643865278,3.0,1424.0,1423.7,0.54473738]
[1673643865494,24.78857467,1424.1,1423.8,21.07035]
[1673643865714,0.066,1424.1,1423.8,21.13635]
[1673643866050,3.0,1424.2,1423.8,21.13635]
[1673643867297,13.62783272,1424.2,1423.8,14.1129]
[1673643867533,13.69383272,1424.2,1423.8,7.08945]
[1673643867751,1.36278327,1424.1,1423.8,7.08945]
[1673643868118,1.36278327,1424.1,1423.8,14.1129]
[1673643868324,1.36278327,1424.1,1423.8,7.08945]
[1673643868645,1.36278327,1424.1,1423.8,21.13635]
[1673643868847,6.71189087,1424.2,1423.8,21.13635]
[1673643869125,3.60633272,1424.1,1423.8,0.066]
[1673643869273,3.60633272,1424.1,1423.7,0.066]
[1673643869274,20.65127272,1424.0,1423.7,0.066]
[1673643869478,5.67145999,1423.9,1423.5,0.066]
[1673643869695,5.73745999,1423.9,1423.5,14.0494]
[1673643869937,3.60633272,1423.8,1423.6,7.0244]
[1673643870112,3.60633272,1423.8,1423.6,0.066]
[1673643870113,24.67728272,1423.8,1423.6,0.066]
[1673643870337,24.74328272,1423.8,1423.4,0.066]
[1673643870557,2.47432827,1423.7,1423.3,1.03935687]
[1673643870779,9.49849827,1423.7,1423.3,1.58819667]
[1673643871108,9.56449827,1423.7,1423.3,4.08819667]
[1673643871422,2.54032827,1423.7,1423.4,0.5488398]
[1673643871638,12.31034087,1423.8,1423.4,0.5488398]
[1673643872324,19.33414087,1423.8,1423.4,0.5488398]
[1673643872767,19.33414087,1423.8,1423.2,1.12162742]
[1673643872768,1.559,1423.6,1423.2,1.12162742]
[1673643872962,1.559,1423.6,1423.1,3.8279666]
[1673643872963,24.87688087,1423.5,1423.1,3.8279666]
[1673643873198,24.87688087,1423.5,1423.1,2.72260973]
[1673643873199,3.60633272,1423.4,1423.1,2.72260973]
[1673643873417,3.60633272,1423.3,1423.1,2.72260973]
[1673643873629,3.60633272,1423.2,1423.1,2.72260973]
[1673643876732,10.63274272,1423.2,1423.1,2.72260973]
[1673643876952,10.69874272,1423.2,1423.1,2.72260973]
[1673643877626,24.75156272,1423.2,1423.1,2.72260973]
[1673643877783,10.69874272,1423.2,1423.1,2.72260973]
[1673643877997,12.57754132,1423.2,1423.1,2.72260973]
[1673643878203,5.55113132,1423.2,1423.1,16.77642973]
[1673643878424,3.67233272,1423.2,1423.1,16.64801022]
[1673643878646,3.60633272,1423.2,1423.1,16.64801022]
[1673643878887,3.60633272,1423.2,1423.1,23.67492022]
[1673643879059,1.12919327,1423.3,1423.1,2.59419022]
[1673643879257,14.69549599,1423.3,1423.1,2.52819022]
[1673643879470,1.4695496,1423.2,1423.1,2.52819022]
[1673643879674,8.07588232,1423.2,1423.1,2.52819022]
[1673643879888,29.22111232,1423.2,1423.1,2.52819022]
[1673643880514,22.19470232,1423.2,1423.1,2.52819022]
[1673643882205,8.14188232,1423.2,1423.1,2.52819022]
[1673643883579,6.67233272,1423.2,1423.1,9.55510022]
[1673643883788,3.066,1423.2,1423.1,16.64801022]
[1673643884044,4.16875142,1423.3,1423.1,16.64801022]
[1673643884369,4.16875142,1423.3,1423.1,23.45144421]
[1673643884370,3.0,1423.2,1423.1,23.45144421]
[1673643884578,3.67233272,1423.3,1423.1,16.42453421]
[1673643884727,3.60633272,1423.3,1423.1,23.45144421]
[1673643885183,0.066,1423.4,1423.1,23.45144421]
[1673643885397,3.60633272,1423.4,1423.1,23.45144421]
[1673643885739,0.1559,1423.5,1423.1,18.92453421]
[1673643885740,0.2219,1423.5,1423.1,18.92453421]
[1673643885899,3.60633272,1423.3,1423.1,2.37071421]
[1673643886116,10.63274272,1423.2,1423.1,2.30471421]
[1673643886346,3.67233272,1423.2,1423.1,2.30471421]
[1673643886537,3.60633272,1423.2,1423.1,2.30471421]
[1673643886747,6.23893499,1423.2,1423.1,2.30471421]
[1673643886994,13.33134499,1423.2,1423.1,2.30471421]
[1673643887798,20.35775499,1423.2,1423.1,2.30471421]
[1673643887991,29.00072314,1423.2,1423.1,2.30471421]
[1673643888307,32.00072314,1423.2,1423.1,2.30471421]
[1673643888470,36.22772314,1423.2,1423.1,4.21e-06]
[1673643888688,36.22772314,1423.2,1423.0,2.91527421]
[1673643888689,43.25413314,1423.2,1423.0,2.91527421]
[1673643888894,9.50174603,1423.1,1423.0,2.84927421]
[1673643889219,26.12156603,1423.1,1423.0,2.84927421]
[1673643889609,16.59465603,1423.1,1423.0,2.84927421]
[1673643890208,20.82165603,1423.1,1423.0,2.84927421]
[1673643890732,27.84856603,1423.1,1423.0,2.84927421]
[1673643891795,34.87547603,1423.1,1423.0,2.84927421]
[1673643892038,27.84856603,1423.1,1423.0,2.84927421]
[1673643892231,9.56774603,1423.1,1423.0,2.84927421]
[1673643892423,30.55006272,1423.1,1423.0,2.84927421]
[1673643892665,16.49624272,1423.1,1423.0,2.84927421]
[1673643893203,14.92624272,1423.1,1423.0,2.84927421]
[1673643893429,10.69924272,1423.1,1423.0,2.84927421]
[1673643894577,3.67233272,1423.1,1423.0,2.65397187]
[1673643894768,20.34706781,1423.1,1423.0,2.65397187]
[1673643894993,13.38615781,1423.1,1423.0,2.65397187]
[1673643895355,3.42233272,1423.1,1423.0,2.65397187]
[1673643895585,3.35633272,1423.1,1423.0,2.54510833]
[1673643896250,3.35833272,1423.1,1423.0,2.54510833]
[1673643896428,3.35633272,1423.1,1423.0,2.54510833]
[1673643896765,6.35633272,1423.1,1423.0,2.54510833]
[1673643896970,6.42233272,1423.1,1423.0,2.54510833]
[1673643897725,3.066,1423.1,1423.0,23.62730833]
[1673643897900,3.066,1423.2,1423.0,2.61110833]
[1673643898114,8.31293272,1423.2,1423.0,2.54510833]
[1673643898335,24.68706272,1423.1,1423.0,2.54510833]
[1673643898551,24.75306272,1423.1,1423.0,1.8249806]
[1673643898877,20.72615272,1423.1,1423.0,1.8249806]
[1673643899092,13.69924272,1423.1,1423.0,1.94566098]
[1673643899303,13.69924272,1423.1,1423.0,1.94566109]
[1673643899304,16.64910881,1423.1,1423.0,1.94566109]
[1673643899632,30.70292881,1423.1,1423.0,1.75175691]
[1673643899836,23.67601881,1423.1,1423.0,1.75175699]
[1673643900148,23.67601881,1423.1,1423.0,1.75175707]
[1673643900451,23.67601881,1423.1,1423.0,1.75175713]
[1673643900614,23.67601881,1423.1,1423.0,1.75175718]
[1673643900831,23.67601881,1423.1,1423.0,1.75175721]
[1673643901043,3.066,1423.1,1423.0,8.77915725]
[1673643901402,3.066,1423.3,1423.0,15.87255806]
[1673643901559,7.02626,1423.3,1423.0,1.81775972]
[1673643901770,7.02626,1423.3,1423.0,1.75175994]
[1673643901771,25.37198,1423.3,1423.0,1.75175994]
[1673643902039,8.341198,1423.2,1423.0,1.7517601]
[1673643902190,8.341198,1423.2,1423.0,1.75176035]
[1673643902191,7.02691,1423.1,1423.0,1.75176035]
[1673643902403,1.044,1423.1,1423.0,1.75176051]
[1673643902660,33.25882,1423.1,1423.0,1.75176066]
[1673643902984,33.25882,1423.1,1422.8,2.06987604]
[1673643902985,42.15664034,1423.1,1422.8,2.06987604]
[1673643903149,21.0837,1422.9,1422.8,1.27797378]
[1673643903349,37.81793272,1422.9,1422.8,1.15728914]
[1673643903815,40.81793272,1422.9,1422.8,1.15728914]
[1673643904020,41.52649673,1422.9,1422.8,1.15728914]
[1673643904244,67.3441464,1422.9,1422.8,9.14e-06]
[1673643904399,68.9091464,1422.9,1422.8,9.14e-06]
[1673643906293,73.50882284,1422.9,1422.8,9.14e-06]
[1673643906506,68.9091464,1422.9,1422.8,9.14e-06]
[1673643906717,68.94870455,1422.9,1422.8,9.14e-06]
[1673643907353,68.94870455,1422.9,1422.5,0.12113272]
[1673643907354,82.51363323,1422.9,1422.5,0.12113272]
[1673643907720,30.82533272,1422.6,1422.5,0.12113272]
[1673643907871,55.20947272,1422.6,1422.5,0.12113272]
[1673643908078,55.95759488,1422.6,1422.5,0.12113272]
[1673643908861,55.24903087,1422.6,1422.5,0.12113272]
[1673643909033,57.78622887,1422.6,1422.5,0.12113272]
[1673643909447,36.31246887,1422.6,1422.5,0.12113272]
[1673643909694,29.28308887,1422.6,1422.5,0.12113272]
[1673643910021,43.34184887,1422.6,1422.5,0.12113272]
[1673643910868,51.46541288,1422.6,1422.5,0.12113272]
[1673643911175,57.59447634,1422.6,1422.5,2.72e-06]
[1673643911335,53.03041288,1422.6,1422.5,2.72e-06]
[1673643911794,60.38621177,1422.6,1422.3,2.6e-07]
[1673643912117,32.39533272,1422.4,1422.1,0.04922226]
[1673643912337,19.16833272,1422.2,1422.1,0.04922226]
[1673643912643,43.32838272,1422.2,1422.1,0.04922226]
[1673643912972,3.066,1422.2,1422.1,1.02822226]
[1673643913185,13.64168272,1422.2,1422.1,0.04922226]
[1673643913501,24.50852799,1422.2,1422.1,0.04922226]
[1673643913693,10.44582799,1422.2,1422.1,0.04922226]
[1673643913858,37.17487799,1422.2,1422.1,0.04922226]
[1673643914060,45.77587799,1422.2,1422.1,0.04922226]
[1673643914271,51.04850546,1422.2,1422.1,0.04922226]
[1673643914476,51.04850546,1422.2,1422.0,0.63843931]
[1673643914727,52.3845797,1422.1,1422.0,0.63843931]
[1673643914937,54.9505797,1422.1,1422.0,0.63843931]
[1673643915132,47.5355797,1422.1,1422.0,0.63843931]
[1673643915356,38.0037297,1422.1,1422.0,0.63843931]
[1673643915539,57.72320717,1422.1,1422.0,9.31e-06]
[1673643915747,58.93876532,1422.1,1422.0,9.31e-06]
[1673643916010,58.93876532,1422.1,1421.9,0.1451408]
[1673643916011,60.12476532,1422.1,1421.7,2.5]
[1673643916220,31.60833272,1421.8,1421.7,1.72575712]
[1673643916397,31.60833272,1421.8,1421.5,2.5]
[1673643916398,67.32897254,1421.8,1421.5,0.066]
[1673643916589,21.83333272,1421.6,1421.4,0.8465869]
[1673643916799,14.00448599,1421.5,1421.4,0.8465869]
[1673643917009,0.066,1421.5,1421.4,0.8465869]
[1673643917266,3.0,1421.7,1421.4,0.8465869]
[1673643917482,3.60633272,1421.7,1421.5,1.175]
[1673643917791,3.60633272,1421.7,1421.4,9.1338969]
[1673643918111,3.60633272,1421.7,1421.4,10.75082759]
[1673643918427,3.066,1421.8,1421.5,1.177]
[1673643918586,0.066,1421.9,1421.7,1.186]
[1673643918796,0.066,1422.1,1421.6,1.186]
[1673643918996,14.066,1422.3,1421.7,21.10074]
[1673643919211,14.066,1422.3,1421.8,2.110074]
[1673643919523,39.80934815,1422.3,1421.7,1.241]
[1673643919735,15.18,1422.1,1421.6,0.066]
[1673643919962,15.18,1422.1,1421.5,8.3344]
[1673643919963,15.246,1422.1,1421.5,8.3344]
[1673643920196,3.60633272,1422.0,1421.5,15.36878]
[1673643920387,3.60633272,1422.0,1421.6,1.536878]
[1673643920604,3.0,1421.9,1421.6,1.536878]
[1673643921352,3.0,1421.9,1421.6,16.786448]
[1673643921544,3.066,1422.1,1421.6,16.852448]
[1673643921786,3.60633272,1422.1,1421.7,2.8712448]
[1673643922112,3.0,1422.0,1421.7,2.8712448]
[1673643922262,3.0,1422.0,1421.7,1.186]
[1673643922902,0.066,1422.1,1421.8,1.186]
[1673643923118,0.066,1422.4,1421.9,14.06568]
[1673643923359,3.60633272,1422.4,1422.0,1.406568]
[1673643923684,3.60633272,1422.4,1422.1,1.186]
[1673643923868,3.60633272,1422.4,1422.0,2.592568]
[1673643923869,3.60633272,1422.3,1422.0,2.592568]
[1673643924088,3.60633272,1422.3,1421.9,1.241]
[1673643924276,3.60633272,1422.3,1422.0,7.0322]
[1673643924491,0.066,1422.4,1422.0,8.2842]
[1673643924732,30.436,1422.5,1422.0,8.2842]
[1673643924940,34.04233272,1422.5,1422.1,16.07778]
[1673643925135,3.67233272,1422.5,1422.1,16.14378]
[1673643925304,3.60633272,1422.5,1422.1,16.14378]
[1673643925521,3.60633272,1422.5,1422.2,1.614378]
[1673643925795,0.066,1422.6,1422.2,15.676558]
[1673643925951,3.60633272,1422.6,1422.2,15.742558]
[1673643926176,0.066,1422.7,1422.3,1.5742558]
[1673643926380,0.066,1422.7,1422.3,7.03084001]
[1673643926381,3.60633272,1422.7,1422.3,7.03084001]
[1673643926593,3.60633272,1422.7,1422.3,14.12770001]
[1673643926907,30.436,1422.8,1422.5,21.08931]
[1673643927119,30.436,1422.8,1422.5,8.28177]
[1673643927120,3.67233272,1422.8,1422.5,8.28177]
[1673643927331,3.60633272,1422.8,1422.5,8.28177]
[1673643927961,3.60633272,1422.8,1422.5,1.252]
[1673643928174,3.60633272,1422.8,1422.5,1.186]
[1673643928410,3.60633272,1422.8,1422.5,3.686]
[1673643929327,12.71171381,1422.8,1422.5,1.186]
[1673643929561,19.80625381,1422.8,1422.6,1.178]
[1673643929769,13.63521272,1422.7,1422.6,0.22572347]
[1673643929961,20.73009272,1422.7,1422.4,3.686]
[1673643930184,2.07300927,1422.6,1422.4,2.5]
[1673643930418,9.10249927,1422.6,1422.4,2.5]
[1673643930626,9.16849927,1422.6,1422.4,2.5]
[1673643930837,9.16849927,1422.6,1422.3,0.066]
[1673643931055,0.066,1422.6,1422.3,7.03076]
[1673643931261,13.63521272,1422.7,1422.3,7.03076]
[1673643931262,13.70121272,1422.7,1422.3,7.09676]